[Event "Early-Titled-Tuesday-Blitz-September-26-2023"]
[Site "Chess.com"]
[Date "2023.09.26"]
[Round "7"]
[White "Bilan_Danila"]
[Black "Javylavilla"]
[Result "1-0"]
[WhiteElo "2531"]
[BlackElo "2332"]
[TimeControl "180+1"]
[EndTime "9:19:10 PDT"]
[Termination "Bilan_Danila won by checkmate"]

1. d4 {[%clk 0:03:00.9]} 1... Nf6 {[%clk 0:02:59.3]} 2. Nf3 {[%clk 0:03:01]}
2... e6 {[%clk 0:02:58.3]} 3. g3 {[%clk 0:03:00.9]} 3... c5 {[%clk 0:02:57]} 4.
Bg2 {[%clk 0:03:01.3]} 4... Nc6 {[%clk 0:02:56.2]} 5. c4 {[%clk 0:03:01]} 5...
d5 {[%clk 0:02:52.8]} 6. cxd5 {[%clk 0:02:57.9]} 6... exd5 {[%clk 0:02:51]} 7.
O-O {[%clk 0:02:57.9]} 7... Be7 {[%clk 0:02:49.4]} 8. Nc3 {[%clk 0:02:57.1]}
8... cxd4 {[%clk 0:02:45.3]} 9. Nxd4 {[%clk 0:02:57]} 9... O-O {[%clk
0:02:44.9]} 10. Bg5 {[%clk 0:02:51.8]} 10... Be6 {[%clk 0:02:29.7]} 11. Nxe6
{[%clk 0:02:48.5]} 11... fxe6 {[%clk 0:02:29.5]} 12. Bh3 {[%clk 0:02:45.1]}
12... e5 {[%clk 0:02:01.4]} 13. Be6+ {[%clk 0:02:35.1]} 13... Kh8 {[%clk
0:02:00.8]} 14. Bxf6 {[%clk 0:02:34.4]} 14... Rxf6 {[%clk 0:01:57.4]} 15. Bxd5
{[%clk 0:02:30.1]} 15... Qb6 {[%clk 0:01:52.9]} 16. Bxc6 {[%clk 0:02:07.4]}
16... Qxc6 {[%clk 0:01:48.8]} 17. Nd5 {[%clk 0:01:43.8]} 17... Rd6 {[%clk
0:01:47.6]} 18. Nxe7 {[%clk 0:01:44.1]} 18... Qd7 {[%clk 0:01:34.2]} 19. Qb3
{[%clk 0:01:07.2]} 19... Qxe7 {[%clk 0:01:32.1]} 20. Rfd1 {[%clk 0:01:07.3]}
20... Rh6 {[%clk 0:01:29.3]} 21. Rac1 {[%clk 0:00:55.2]} 21... Rf8 {[%clk
0:01:26.5]} 22. Qd5 {[%clk 0:00:44]} 22... e4 {[%clk 0:01:24.5]} 23. Qc5 {[%clk
0:00:28.3]} 23... Qf7 {[%clk 0:01:20.3]} 24. Rd7 {[%clk 0:00:25.4]} 24... Qf6
{[%clk 0:01:13.2]} 25. Rcd1 {[%clk 0:00:24.8]} 25... e3 {[%clk 0:00:54.7]} 26.
Qxe3 {[%clk 0:00:20]} 26... Rh5 {[%clk 0:00:51.7]} 27. Qd4 {[%clk 0:00:15.9]}
27... Re5 {[%clk 0:00:44.6]} 28. Rd8 {[%clk 0:00:14.9]} 28... Ree8 {[%clk
0:00:33.5]} 29. Qxf6 {[%clk 0:00:13.1]} 29... gxf6 {[%clk 0:00:34.4]} 30. Rxe8
{[%clk 0:00:12.3]} 30... Rxe8 {[%clk 0:00:34.6]} 31. e3 {[%clk 0:00:10.2]} 31...
Re7 {[%clk 0:00:34.1]} 32. Rd6 {[%clk 0:00:09.3]} 32... Kg7 {[%clk 0:00:32.7]}
33. Kg2 {[%clk 0:00:09.5]} 33... Kf7 {[%clk 0:00:32.5]} 34. Rd2 {[%clk 0:00:09]}
34... Rc7 {[%clk 0:00:32.8]} 35. f4 {[%clk 0:00:08.5]} 35... Ke6 {[%clk
0:00:31.2]} 36. Kf3 {[%clk 0:00:09.2]} 36... f5 {[%clk 0:00:30.7]} 37. h3 {[%clk
0:00:09.7]} 37... a6 {[%clk 0:00:30]} 38. g4 {[%clk 0:00:09.9]} 38... b5 {[%clk
0:00:29.9]} 39. gxf5+ {[%clk 0:00:09.9]} 39... Kxf5 {[%clk 0:00:28.8]} 40. Rd6
{[%clk 0:00:10]} 40... a5 {[%clk 0:00:27.3]} 41. e4# {[%clk 0:00:10.3]} 1-0

[Event "Early-Titled-Tuesday-Blitz-September-26-2023"]
[Site "Chess.com"]
[Date "2023.09.26"]
[Round "7"]
[White "wadsy27"]
[Black "Kotofeyca"]
[Result "1-0"]
[WhiteElo "2613"]
[BlackElo "2380"]
[TimeControl "180+1"]
[EndTime "9:19:10 PDT"]
[Termination "wadsy27 won by checkmate"]

1. Nf3 {[%clk 0:03:00.9]} 1... d5 {[%clk 0:02:58.8]} 2. g3 {[%clk 0:03:00.9]}
2... c6 {[%clk 0:02:59.7]} 3. Bg2 {[%clk 0:03:00.8]} 3... Bg4 {[%clk 0:03:00.1]}
4. c4 {[%clk 0:03:01]} 4... e6 {[%clk 0:02:59.8]} 5. cxd5 {[%clk 0:02:59.4]}
5... exd5 {[%clk 0:02:59.3]} 6. d3 {[%clk 0:02:58.8]} 6... Nd7 {[%clk
0:02:58.1]} 7. O-O {[%clk 0:02:58.3]} 7... Ngf6 {[%clk 0:02:57.2]} 8. h3 {[%clk
0:02:58.3]} 8... Bh5 {[%clk 0:02:56.6]} 9. Nc3 {[%clk 0:02:52.1]} 9... Bc5
{[%clk 0:02:55.8]} 10. e4 {[%clk 0:02:46.4]} 10... dxe4 {[%clk 0:02:31.3]} 11.
dxe4 {[%clk 0:02:47.3]} 11... Bxf3 {[%clk 0:02:27.3]} 12. Bxf3 {[%clk
0:02:45.1]} 12... Ne5 {[%clk 0:02:27.7]} 13. Qxd8+ {[%clk 0:02:42.2]} 13... Rxd8
{[%clk 0:02:28.6]} 14. Be2 {[%clk 0:02:42.5]} 14... Nd3 {[%clk 0:02:24]} 15. Kg2
{[%clk 0:02:38.9]} 15... Nxc1 {[%clk 0:02:22.5]} 16. Raxc1 {[%clk 0:02:38.5]}
16... Bb4 {[%clk 0:02:14.9]} 17. e5 {[%clk 0:02:29.5]} 17... Nd5 {[%clk
0:02:00.8]} 18. Bc4 {[%clk 0:02:16.1]} 18... Nxc3 {[%clk 0:01:54.1]} 19. bxc3
{[%clk 0:02:15.5]} 19... Ba3 {[%clk 0:01:54.3]} 20. Rc2 {[%clk 0:02:09.4]} 20...
Ke7 {[%clk 0:01:50.4]} 21. e6 {[%clk 0:02:04.4]} 21... fxe6 {[%clk 0:01:43.1]}
22. Re1 {[%clk 0:02:04.2]} 22... Rd6 {[%clk 0:01:40.3]} 23. Rce2 {[%clk
0:02:03.1]} 23... Kd8 {[%clk 0:01:29.8]} 24. Bxe6 {[%clk 0:01:55.8]} 24... Re8
{[%clk 0:01:28.9]} 25. f4 {[%clk 0:01:41.7]} 25... Rd3 {[%clk 0:01:24.7]} 26.
Bf5 {[%clk 0:01:31.6]} 26... Rxe2+ {[%clk 0:01:19.4]} 27. Rxe2 {[%clk
0:01:32.5]} 27... Rxc3 {[%clk 0:01:14.8]} 28. Bxh7 {[%clk 0:01:32.3]} 28... Bd6
{[%clk 0:00:56.1]} 29. h4 {[%clk 0:01:28.7]} 29... a5 {[%clk 0:00:54.8]} 30. h5
{[%clk 0:01:27.1]} 30... a4 {[%clk 0:00:54.3]} 31. Kh3 {[%clk 0:01:21.2]} 31...
b5 {[%clk 0:00:53.7]} 32. Kg4 {[%clk 0:01:18.9]} 32... b4 {[%clk 0:00:52.6]} 33.
Rh2 {[%clk 0:01:13.7]} 33... b3 {[%clk 0:00:47.8]} 34. axb3 {[%clk 0:01:13]}
34... axb3 {[%clk 0:00:48.7]} 35. h6 {[%clk 0:01:10.6]} 35... gxh6 {[%clk
0:00:42.9]} 36. Rxh6 {[%clk 0:01:10.3]} 36... Ke7 {[%clk 0:00:39.5]} 37. Bf5
{[%clk 0:01:08.4]} 37... Re3 {[%clk 0:00:36.2]} 38. Rh7+ {[%clk 0:00:48.9]}
38... Kf6 {[%clk 0:00:35.9]} 39. Rb7 {[%clk 0:00:48.8]} 39... c5 {[%clk
0:00:30.5]} 40. Bh7 {[%clk 0:00:28.6]} 40... c4 {[%clk 0:00:30]} 41. Bg8 {[%clk
0:00:28.3]} 41... Rc3 {[%clk 0:00:26.2]} 42. Rf7+ {[%clk 0:00:20.1]} 42... Kg6
{[%clk 0:00:24.3]} 43. f5+ {[%clk 0:00:19.8]} 43... Kh6 {[%clk 0:00:19.4]} 44.
Rh7# {[%clk 0:00:19.9]} 1-0

[Event "Early-Titled-Tuesday-Blitz-September-26-2023"]
[Site "Chess.com"]
[Date "2023.09.26"]
[Round "7"]
[White "Gabix_94"]
[Black "remi04"]
[Result "0-1"]
[WhiteElo "2706"]
[BlackElo "2834"]
[TimeControl "180+1"]
[EndTime "9:19:12 PDT"]
[Termination "remi04 won by checkmate"]

1. e4 {[%clk 0:02:54.6]} 1... c5 {[%clk 0:02:59.6]} 2. Nf3 {[%clk 0:02:53.8]}
2... d6 {[%clk 0:03:00.1]} 3. Nc3 {[%clk 0:02:53.8]} 3... a6 {[%clk 0:02:58.7]}
4. Be2 {[%clk 0:02:53.2]} 4... Nc6 {[%clk 0:02:57.6]} 5. d4 {[%clk 0:02:53]}
5... cxd4 {[%clk 0:02:57.4]} 6. Nxd4 {[%clk 0:02:53.9]} 6... Nf6 {[%clk
0:02:57.8]} 7. O-O {[%clk 0:02:53.4]} 7... g6 {[%clk 0:02:58]} 8. Nb3 {[%clk
0:02:49.8]} 8... Bg7 {[%clk 0:02:57.6]} 9. Bg5 {[%clk 0:02:50]} 9... O-O {[%clk
0:02:58.2]} 10. Re1 {[%clk 0:02:50.6]} 10... Be6 {[%clk 0:02:55.9]} 11. Bf1
{[%clk 0:02:50.5]} 11... h6 {[%clk 0:02:48.3]} 12. Bh4 {[%clk 0:02:49.1]} 12...
Nd7 {[%clk 0:02:35.1]} 13. Qd2 {[%clk 0:02:38.4]} 13... Nc5 {[%clk 0:02:29.9]}
14. Rad1 {[%clk 0:02:34.6]} 14... Nxb3 {[%clk 0:02:24.9]} 15. axb3 {[%clk
0:02:35.5]} 15... Qa5 {[%clk 0:02:03]} 16. Nd5 {[%clk 0:02:25.5]} 16... Qxd2
{[%clk 0:02:02.2]} 17. Rxd2 {[%clk 0:02:26.4]} 17... g5 {[%clk 0:02:01.7]} 18.
Bg3 {[%clk 0:02:24.6]} 18... Rac8 {[%clk 0:01:58.1]} 19. c3 {[%clk 0:02:23]}
19... Rfe8 {[%clk 0:01:33.8]} 20. h4 {[%clk 0:02:19.3]} 20... Ne5 {[%clk
0:01:29.9]} 21. f3 {[%clk 0:02:12.9]} 21... Ng6 {[%clk 0:01:20.8]} 22. hxg5
{[%clk 0:02:10.5]} 22... hxg5 {[%clk 0:01:21.1]} 23. b4 {[%clk 0:02:09.7]} 23...
Be5 {[%clk 0:01:15.4]} 24. Bf2 {[%clk 0:02:05.2]} 24... Kg7 {[%clk 0:01:12.6]}
25. b5 {[%clk 0:02:00.9]} 25... axb5 {[%clk 0:01:11.7]} 26. Bxb5 {[%clk
0:02:01.8]} 26... Rh8 {[%clk 0:01:11.6]} 27. Ra1 {[%clk 0:01:52.6]} 27... Bxd5
{[%clk 0:01:00.2]} 28. Rxd5 {[%clk 0:01:48.9]} 28... Nf4 {[%clk 0:00:40.5]} 29.
Rdd1 {[%clk 0:01:46.7]} 29... Rh7 {[%clk 0:00:40.1]} 30. Kf1 {[%clk 0:01:35.7]}
30... Rch8 {[%clk 0:00:35.3]} 31. Bg1 {[%clk 0:01:29.8]} 31... Rh1 {[%clk
0:00:33.1]} 32. Rd2 {[%clk 0:01:21]} 32... R8h2 {[%clk 0:00:28.2]} 33. Rad1
{[%clk 0:01:21.7]} 33... Nh5 {[%clk 0:00:23.8]} 34. Bd7 {[%clk 0:01:09.7]} 34...
Bg3 {[%clk 0:00:19.5]} 35. Bg4 {[%clk 0:01:02.8]} 35... Nf4 {[%clk 0:00:19.3]}
36. c4 {[%clk 0:01:00.8]} 36... Rh8 {[%clk 0:00:09.2]} 37. b4 {[%clk 0:00:59.1]}
37... Ra8 {[%clk 0:00:04.5]} 38. Rb2 {[%clk 0:00:50.1]} 38... Ra3 {[%clk
0:00:03.8]} 39. c5 {[%clk 0:00:49.9]} 39... dxc5 {[%clk 0:00:03.8]} 40. bxc5
{[%clk 0:00:50.8]} 40... Bh2 {[%clk 0:00:04.4]} 41. Kf2 {[%clk 0:00:50.2]} 41...
Bxg1+ {[%clk 0:00:04.8]} 42. Rxg1 {[%clk 0:00:50]} 42... Nd3+ {[%clk 0:00:05.3]}
43. Kg3 {[%clk 0:00:48.5]} 43... Rxg1 {[%clk 0:00:05.7]} 44. Rxb7 {[%clk
0:00:49.3]} 44... Nxc5 {[%clk 0:00:05.4]} 45. Rxe7 {[%clk 0:00:48.9]} 45... Ra2
{[%clk 0:00:06]} 46. Bh5 {[%clk 0:00:49.3]} 46... Raxg2+ {[%clk 0:00:05.8]} 47.
Kh3 {[%clk 0:00:50]} 47... Kh6 {[%clk 0:00:05.3]} 48. Bxf7 {[%clk 0:00:50.2]}
48... Nd3 {[%clk 0:00:04.1]} 49. Re6+ {[%clk 0:00:49.4]} 49... Kg7 {[%clk
0:00:04.5]} 50. Rg6+ {[%clk 0:00:48.1]} 50... Kxf7 {[%clk 0:00:04.6]} 51. Rxg5
{[%clk 0:00:49]} 51... Nf4+ {[%clk 0:00:04.3]} 52. Kh4 {[%clk 0:00:49.1]} 52...
Rh2# {[%clk 0:00:03.8]} 0-1

[Event "Early-Titled-Tuesday-Blitz-September-26-2023"]
[Site "Chess.com"]
[Date "2023.09.26"]
[Round "7"]
[White "GianmarcoVaR"]
[Black "CSB7"]
[Result "0-1"]
[WhiteElo "2606"]
[BlackElo "2726"]
[TimeControl "180+1"]
[EndTime "9:19:13 PDT"]
[Termination "CSB7 won by resignation"]

1. e4 {[%clk 0:02:54.1]} 1... c5 {[%clk 0:02:59.8]} 2. c3 {[%clk 0:02:53.6]}
2... d5 {[%clk 0:02:56]} 3. exd5 {[%clk 0:02:52.7]} 3... Qxd5 {[%clk 0:02:56.9]}
4. d4 {[%clk 0:02:52.6]} 4... Nc6 {[%clk 0:02:56.2]} 5. Nf3 {[%clk 0:02:45.9]}
5... Bf5 {[%clk 0:02:54.6]} 6. Be3 {[%clk 0:01:50.5]} 6... cxd4 {[%clk
0:02:52.5]} 7. cxd4 {[%clk 0:01:49.6]} 7... Bxb1 {[%clk 0:02:50.2]} 8. Rxb1
{[%clk 0:01:48.5]} 8... e6 {[%clk 0:02:40.1]} 9. a3 {[%clk 0:01:40.1]} 9... Nf6
{[%clk 0:02:39.1]} 10. Bd3 {[%clk 0:01:35.7]} 10... Be7 {[%clk 0:02:36.8]} 11.
O-O {[%clk 0:01:35.2]} 11... O-O {[%clk 0:02:37.4]} 12. Qe2 {[%clk 0:01:07]}
12... Rfd8 {[%clk 0:02:33.4]} 13. Rbc1 {[%clk 0:00:56.2]} 13... Rac8 {[%clk
0:02:31.7]} 14. Rfd1 {[%clk 0:00:56.1]} 14... h6 {[%clk 0:02:21.9]} 15. Bb1
{[%clk 0:00:48.2]} 15... Qh5 {[%clk 0:02:13.4]} 16. b4 {[%clk 0:00:41.7]} 16...
Bd6 {[%clk 0:02:11.5]} 17. Qd3 {[%clk 0:00:38.6]} 17... Ne7 {[%clk 0:02:06.9]}
18. h3 {[%clk 0:00:31.9]} 18... Nf5 {[%clk 0:01:55.8]} 19. Rxc8 {[%clk 0:00:31]}
19... Rxc8 {[%clk 0:01:55.6]} 20. Bd2 {[%clk 0:00:30.5]} 20... Ne7 {[%clk
0:01:41.3]} 21. Re1 {[%clk 0:00:16.4]} 21... Nc6 {[%clk 0:01:20.7]} 22. Ne5
{[%clk 0:00:09]} 22... Bxe5 {[%clk 0:01:12.7]} 23. dxe5 {[%clk 0:00:07.7]} 23...
Nxe5 {[%clk 0:01:09.1]} 24. Qd4 {[%clk 0:00:06.1]} 24... Nc6 {[%clk 0:01:04.5]}
25. Qe3 {[%clk 0:00:05.5]} 25... Rd8 {[%clk 0:01:00]} 26. Bc1 {[%clk 0:00:05.3]}
26... Rd1 {[%clk 0:00:54.5]} 27. Bb2 {[%clk 0:00:03.5]} 27... a6 {[%clk
0:00:33.8]} 28. Bc2 {[%clk 0:00:03.1]} 28... Rxe1+ {[%clk 0:00:33.5]} 29. Qxe1
{[%clk 0:00:03.8]} 29... Qd5 {[%clk 0:00:33.9]} 30. Qc3 {[%clk 0:00:02.8]} 30...
e5 {[%clk 0:00:31.4]} 31. Bb3 {[%clk 0:00:02.6]} 31... Qd7 {[%clk 0:00:27.4]}
32. Qe3 {[%clk 0:00:02.7]} 32... Nd4 {[%clk 0:00:25.8]} 33. Bc4 {[%clk
0:00:01.7]} 33... Qd6 {[%clk 0:00:23.5]} 34. Bd3 {[%clk 0:00:02.2]} 34... Kf8
{[%clk 0:00:22.8]} 35. Qe1 {[%clk 0:00:02.2]} 35... Nd5 {[%clk 0:00:20]} 36. Bf1
{[%clk 0:00:02.2]} 36... Nf4 {[%clk 0:00:19.7]} 37. g3 {[%clk 0:00:01.9]} 37...
Nf3+ {[%clk 0:00:19.5]} 38. Kh1 {[%clk 0:00:02.2]} 38... Nxe1 {[%clk 0:00:20.4]}
0-1

[Event "Early-Titled-Tuesday-Blitz-September-26-2023"]
[Site "Chess.com"]
[Date "2023.09.26"]
[Round "7"]
[White "DanielNaroditsky"]
[Black "Mikhail_Bryakin"]
[Result "1-0"]
[WhiteElo "3147"]
[BlackElo "2839"]
[TimeControl "180+1"]
[EndTime "9:19:15 PDT"]
[Termination "DanielNaroditsky won on time"]

1. e4 {[%clk 0:03:00.6]} 1... c6 {[%clk 0:02:55.9]} 2. Nf3 {[%clk 0:02:56.7]}
2... d5 {[%clk 0:02:56.6]} 3. exd5 {[%clk 0:02:57.6]} 3... cxd5 {[%clk
0:02:56.9]} 4. d4 {[%clk 0:02:58.5]} 4... Nc6 {[%clk 0:02:57]} 5. Bb5 {[%clk
0:02:58.3]} 5... Bd7 {[%clk 0:02:56.8]} 6. c4 {[%clk 0:02:56.8]} 6... Nf6 {[%clk
0:02:56.1]} 7. cxd5 {[%clk 0:02:47.1]} 7... Qa5+ {[%clk 0:02:33.4]} 8. Nc3
{[%clk 0:02:46.2]} 8... Nxd5 {[%clk 0:02:34.1]} 9. Qb3 {[%clk 0:02:42]} 9... e6
{[%clk 0:02:19.8]} 10. O-O {[%clk 0:02:17.4]} 10... Nxc3 {[%clk 0:02:14.7]} 11.
bxc3 {[%clk 0:02:08.5]} 11... Be7 {[%clk 0:02:04]} 12. Bd3 {[%clk 0:01:57.5]}
12... Qc7 {[%clk 0:01:54.9]} 13. Re1 {[%clk 0:01:47.3]} 13... O-O {[%clk
0:01:46.3]} 14. Bd2 {[%clk 0:01:35.1]} 14... Bf6 {[%clk 0:01:37.8]} 15. h4
{[%clk 0:01:28.1]} 15... h6 {[%clk 0:01:26.9]} 16. Bb1 {[%clk 0:01:23]} 16... h5
{[%clk 0:00:44.2]} 17. Qc2 {[%clk 0:01:09.8]} 17... g6 {[%clk 0:00:44.6]} 18.
Ng5 {[%clk 0:01:09.3]} 18... e5 {[%clk 0:00:37.2]} 19. Nxf7 {[%clk 0:00:51.6]}
19... Rxf7 {[%clk 0:00:37.5]} 20. Qxg6+ {[%clk 0:00:51.6]} 20... Kf8 {[%clk
0:00:34]} 21. Qxh5 {[%clk 0:00:44.6]} 21... Bg7 {[%clk 0:00:22.3]} 22. Bg6
{[%clk 0:00:40.2]} 22... Re7 {[%clk 0:00:22.9]} 23. Re3 {[%clk 0:00:34.4]} 23...
e4 {[%clk 0:00:15.2]} 24. Rxe4 {[%clk 0:00:20]} 24... Be8 {[%clk 0:00:14.1]} 25.
Rf4+ {[%clk 0:00:14.7]} 25... Bf7 {[%clk 0:00:14.5]} 26. Rf3 {[%clk 0:00:07.5]}
26... Nd8 {[%clk 0:00:08.2]} 27. Bh6 {[%clk 0:00:06.4]} 27... Bxh6 {[%clk
0:00:02.6]} 28. Qxh6+ {[%clk 0:00:07.3]} 28... Ke8 {[%clk 0:00:03.4]} 29. Bf5
{[%clk 0:00:04.6]} 29... Ne6 {[%clk 0:00:02.9]} 30. Re1 {[%clk 0:00:05.1]} 30...
Kd7 {[%clk 0:00:02.1]} 31. d5 {[%clk 0:00:05.7]} 31... Kd6 {[%clk 0:00:01.8]}
32. Bxe6 {[%clk 0:00:05.4]} 32... Bxe6 {[%clk 0:00:02.2]} 33. Rxe6+ {[%clk
0:00:06.3]} 33... Kc5 {[%clk 0:00:02.6]} 34. Qe3+ {[%clk 0:00:04.1]} 1-0

[Event "Early-Titled-Tuesday-Blitz-September-26-2023"]
[Site "Chess.com"]
[Date "2023.09.26"]
[Round "7"]
[White "spotbet"]
[Black "Jaka_Brilej"]
[Result "1/2-1/2"]
[WhiteElo "2385"]
[BlackElo "2500"]
[TimeControl "180+1"]
[EndTime "9:19:15 PDT"]
[Termination "Game drawn by repetition"]

1. e4 {[%clk 0:02:41.9]} 1... e6 {[%clk 0:02:53]} 2. d4 {[%clk 0:02:42]} 2... d5
{[%clk 0:02:53.9]} 3. Nc3 {[%clk 0:02:41.2]} 3... Nf6 {[%clk 0:02:53.6]} 4. exd5
{[%clk 0:02:41.4]} 4... exd5 {[%clk 0:02:53.6]} 5. Bg5 {[%clk 0:02:41.7]} 5...
Be7 {[%clk 0:02:54.2]} 6. Nf3 {[%clk 0:02:41.6]} 6... c6 {[%clk 0:02:54.1]} 7.
Be2 {[%clk 0:02:41.8]} 7... h6 {[%clk 0:02:53.7]} 8. Bh4 {[%clk 0:02:40.9]} 8...
Bf5 {[%clk 0:02:50.2]} 9. O-O {[%clk 0:02:41.1]} 9... Nbd7 {[%clk 0:02:50.7]}
10. Re1 {[%clk 0:02:41.5]} 10... O-O {[%clk 0:02:50.7]} 11. Bd3 {[%clk
0:02:41.6]} 11... Bg4 {[%clk 0:02:47.5]} 12. h3 {[%clk 0:02:41.8]} 12... Bh5
{[%clk 0:02:46.1]} 13. g4 {[%clk 0:02:41.9]} 13... Bg6 {[%clk 0:02:46.5]} 14.
Bxg6 {[%clk 0:02:41.6]} 14... fxg6 {[%clk 0:02:46.7]} 15. Qd3 {[%clk 0:02:42.5]}
15... g5 {[%clk 0:02:35.2]} 16. Bg3 {[%clk 0:02:41.9]} 16... Re8 {[%clk
0:02:35.1]} 17. Qg6 {[%clk 0:02:25.8]} 17... Nf8 {[%clk 0:02:33.1]} 18. Qf5
{[%clk 0:02:25.9]} 18... Qd7 {[%clk 0:02:31.1]} 19. Qd3 {[%clk 0:02:25]} 19...
Bd6 {[%clk 0:02:13.3]} 20. Be5 {[%clk 0:02:18.2]} 20... Ne6 {[%clk 0:02:08.6]}
21. Qg6 {[%clk 0:02:01.1]} 21... Nf4 {[%clk 0:02:01.6]} 22. Bxf4 {[%clk
0:01:55.9]} 22... Bxf4 {[%clk 0:02:02.5]} 23. Ne5 {[%clk 0:01:55]} 23... Qc7
{[%clk 0:02:03]} 24. Nd3 {[%clk 0:01:45.2]} 24... Qf7 {[%clk 0:01:46.1]} 25.
Nxf4 {[%clk 0:01:33.9]} 25... gxf4 {[%clk 0:01:46.1]} 26. Qf5 {[%clk 0:01:31.9]}
26... Nd7 {[%clk 0:01:44.9]} 27. Ne2 {[%clk 0:01:15.8]} 27... g5 {[%clk
0:01:32.6]} 28. Qd3 {[%clk 0:01:09.6]} 28... Re7 {[%clk 0:01:32.7]} 29. Nc3
{[%clk 0:01:04.1]} 29... Rae8 {[%clk 0:01:33.1]} 30. Rxe7 {[%clk 0:01:03.6]}
30... Rxe7 {[%clk 0:01:34]} 31. Kf1 {[%clk 0:01:03.1]} 31... Nb6 {[%clk
0:01:19.1]} 32. b3 {[%clk 0:00:59.5]} 32... Nc8 {[%clk 0:01:17.9]} 33. Re1
{[%clk 0:00:59.2]} 33... Rxe1+ {[%clk 0:01:17.6]} 34. Kxe1 {[%clk 0:00:59.7]}
34... Nd6 {[%clk 0:01:18.5]} 35. f3 {[%clk 0:00:58]} 35... Kg7 {[%clk
0:01:16.9]} 36. Kf2 {[%clk 0:00:58.3]} 36... Qe6 {[%clk 0:01:16.4]} 37. Na4
{[%clk 0:00:56.1]} 37... b6 {[%clk 0:01:13.2]} 38. Nb2 {[%clk 0:00:53.7]} 38...
h5 {[%clk 0:00:56.8]} 39. Nd1 {[%clk 0:00:50.3]} 39... hxg4 {[%clk 0:00:56.1]}
40. hxg4 {[%clk 0:00:51.2]} 40... Qh6 {[%clk 0:00:55.5]} 41. Ke2 {[%clk
0:00:43.2]} 41... Qh1 {[%clk 0:00:34.6]} 42. Qa6 {[%clk 0:00:39.6]} 42... Nb5
{[%clk 0:00:31.7]} 43. Qb7+ {[%clk 0:00:39]} 43... Kg8 {[%clk 0:00:27.9]} 44.
Qc8+ {[%clk 0:00:33.9]} 44... Kg7 {[%clk 0:00:27.7]} 45. Qd7+ {[%clk 0:00:34.4]}
45... Kg8 {[%clk 0:00:28.3]} 46. Qd8+ {[%clk 0:00:34.7]} 46... Kh7 {[%clk
0:00:28.4]} 47. Qe7+ {[%clk 0:00:34.8]} 47... Kh8 {[%clk 0:00:28]} 48. c3 {[%clk
0:00:29.1]} 48... Qg2+ {[%clk 0:00:27.4]} 49. Nf2 {[%clk 0:00:27.1]} 49... Nxc3+
{[%clk 0:00:27.5]} 50. Kd3 {[%clk 0:00:27.6]} 50... Qxf2 {[%clk 0:00:26.8]} 51.
Qf8+ {[%clk 0:00:27.5]} 51... Kh7 {[%clk 0:00:26.9]} 52. Qf7+ {[%clk 0:00:28.1]}
52... Kh8 {[%clk 0:00:27.4]} 53. Qf8+ {[%clk 0:00:27]} 53... Kh7 {[%clk
0:00:27.8]} 54. Qf7+ {[%clk 0:00:27.4]} 54... Kh8 {[%clk 0:00:28.4]} 55. Qf8+
{[%clk 0:00:25.3]} 1/2-1/2

[Event "Early-Titled-Tuesday-Blitz-September-26-2023"]
[Site "Chess.com"]
[Date "2023.09.26"]
[Round "7"]
[White "Fy_Rakotomaharo"]
[Black "jaskol95"]
[Result "0-1"]
[WhiteElo "2698"]
[BlackElo "2617"]
[TimeControl "180+1"]
[EndTime "9:19:17 PDT"]
[Termination "jaskol95 won by resignation"]

1. Nf3 {[%clk 0:03:00.9]} 1... d5 {[%clk 0:02:58.1]} 2. g3 {[%clk 0:03:00.1]}
2... Nd7 {[%clk 0:02:58.5]} 3. d4 {[%clk 0:02:59.5]} 3... Nb6 {[%clk 0:02:59.2]}
4. Bg2 {[%clk 0:03:00.1]} 4... Bf5 {[%clk 0:02:59.1]} 5. O-O {[%clk 0:02:59.4]}
5... e6 {[%clk 0:02:59.2]} 6. a4 {[%clk 0:03:00]} 6... a5 {[%clk 0:02:56.3]} 7.
b3 {[%clk 0:02:59.5]} 7... h6 {[%clk 0:02:56.1]} 8. Bb2 {[%clk 0:02:59.6]} 8...
Nf6 {[%clk 0:02:56.7]} 9. Nbd2 {[%clk 0:03:00]} 9... Be7 {[%clk 0:02:57]} 10.
Ne5 {[%clk 0:02:59.7]} 10... O-O {[%clk 0:02:55.2]} 11. c4 {[%clk 0:02:59.7]}
11... c6 {[%clk 0:02:54.8]} 12. Qc1 {[%clk 0:02:52.7]} 12... Nbd7 {[%clk
0:02:46.9]} 13. Rd1 {[%clk 0:02:51.7]} 13... Nxe5 {[%clk 0:02:34.8]} 14. dxe5
{[%clk 0:02:52.6]} 14... Nd7 {[%clk 0:02:35.3]} 15. e4 {[%clk 0:02:49.3]} 15...
Bg4 {[%clk 0:02:35.7]} 16. f3 {[%clk 0:02:49.3]} 16... Bh5 {[%clk 0:02:36.3]}
17. exd5 {[%clk 0:02:33.2]} 17... cxd5 {[%clk 0:02:33.6]} 18. cxd5 {[%clk
0:02:33.3]} 18... exd5 {[%clk 0:02:32]} 19. Bd4 {[%clk 0:02:32.8]} 19... Rc8
{[%clk 0:02:26.9]} 20. Qb2 {[%clk 0:02:32.3]} 20... Bc5 {[%clk 0:02:26.8]} 21.
Rac1 {[%clk 0:02:26.5]} 21... Qb6 {[%clk 0:02:18.2]} 22. Bxc5 {[%clk 0:02:26.5]}
22... Rxc5 {[%clk 0:02:15.5]} 23. Kh1 {[%clk 0:02:20.8]} 23... Rfc8 {[%clk
0:02:12.8]} 24. Rxc5 {[%clk 0:02:14.7]} 24... Qxc5 {[%clk 0:02:11.8]} 25. g4
{[%clk 0:02:07.6]} 25... Bg6 {[%clk 0:02:10.1]} 26. f4 {[%clk 0:02:08.1]} 26...
Bd3 {[%clk 0:01:45.6]} 27. Nf3 {[%clk 0:01:52.9]} 27... Be4 {[%clk 0:01:37.7]}
28. Nd4 {[%clk 0:01:53.1]} 28... Bxg2+ {[%clk 0:01:36.8]} 29. Qxg2 {[%clk
0:01:54]} 29... g5 {[%clk 0:01:12]} 30. fxg5 {[%clk 0:01:48.4]} 30... Nxe5
{[%clk 0:01:12]} 31. gxh6 {[%clk 0:01:41.2]} 31... Qxd4 {[%clk 0:01:10.7]} 32.
h7+ {[%clk 0:01:34.2]} 32... Kh8 {[%clk 0:01:06.8]} 33. Qxd5 {[%clk 0:01:20.7]}
33... Qxd5+ {[%clk 0:01:03.1]} 34. Rxd5 {[%clk 0:01:20.8]} 34... Nxg4 {[%clk
0:00:37]} 35. Rxa5 {[%clk 0:01:20.6]} 35... Kxh7 {[%clk 0:00:30.8]} 36. Rb5
{[%clk 0:01:19.4]} 36... Rc7 {[%clk 0:00:29.6]} 37. Rb6 {[%clk 0:01:19.3]} 37...
Ne3 {[%clk 0:00:26.7]} 38. Kg1 {[%clk 0:01:16.6]} 38... Nd5 {[%clk 0:00:26.1]}
39. Rb5 {[%clk 0:01:15.9]} 39... Rd7 {[%clk 0:00:25.4]} 40. Kf2 {[%clk
0:01:13.9]} 40... Kg6 {[%clk 0:00:25.8]} 41. Kf3 {[%clk 0:01:13.8]} 41... Kf5
{[%clk 0:00:25.1]} 42. h4 {[%clk 0:01:13.8]} 42... Kg6 {[%clk 0:00:23.7]} 43. a5
{[%clk 0:01:12.1]} 43... f5 {[%clk 0:00:21.9]} 44. b4 {[%clk 0:01:11]} 44... Kf6
{[%clk 0:00:21.8]} 45. Kg3 {[%clk 0:01:09.1]} 45... Ke5 {[%clk 0:00:21.8]} 46.
h5 {[%clk 0:01:02.5]} 46... Rg7+ {[%clk 0:00:21.7]} 47. Kh4 {[%clk 0:01:01.7]}
47... Rg4+ {[%clk 0:00:22.2]} 48. Kh3 {[%clk 0:01:01.9]} 48... Ke4 {[%clk
0:00:22.6]} 49. Rxb7 {[%clk 0:00:56.6]} 49... Kf3 {[%clk 0:00:19.1]} 50. Rd7
{[%clk 0:00:43.2]} 50... Nf4+ {[%clk 0:00:19.2]} 51. Kh2 {[%clk 0:00:43.8]}
51... Rh4+ {[%clk 0:00:19.5]} 52. Kg1 {[%clk 0:00:43.1]} 52... Ne2+ {[%clk
0:00:20.3]} 0-1